bitfinex/quotes_SOLUSD_20220114
["timestamp","ask_amount","ask_price","bid_price","bid_amount"]
[1642136206486,0.25,147.97,147.89,9.78]
[1642136206985,16.2232,147.98,147.89,9.78]
[1642136207186,18.9262,147.98,147.89,9.78]
[1642136207986,18.6762,147.98,147.89,9.78]
[1642136208188,15.9732,147.98,147.9,2.703]
[1642136208385,15.9732,147.98,147.89,12.843]
[1642136208586,15.9732,147.98,147.89,10.14]
[1642136209487,16.2232,147.98,147.89,10.14]
[1642136210289,16.2232,147.98,147.88,27.3807]
[1642136210488,2.703,147.97,147.88,27.3807]
[1642136210889,2.953,147.97,147.88,27.3807]
[1642136211089,2.953,147.97,147.88,2.703]
[1642136211690,27.4745,147.97,147.87,32.68115883]
[1642136213491,24.7715,147.97,147.87,32.68115883]
[1642136213691,24.7715,147.97,147.87,42.82265883]
[1642136214591,33.4755,147.97,147.87,42.82265883]
[1642136215392,8.954,147.97,147.87,42.82265883]
[1642136215594,6.25,147.97,147.9,10.139]
[1642136215995,0.25,147.97,147.9,10.139]
[1642136216196,10.2232,147.98,147.9,10.139]
[1642136217494,10.2232,147.98,147.89,9.78]
[1642136218095,16.2232,147.98,147.89,9.78]
[1642136219194,16.2232,147.98,147.89,19.9196]
[1642136221200,18.9262,147.98,147.89,19.9196]
[1642136221599,18.9262,147.98,147.89,9.78]
[1642136223201,29.0673,147.98,147.89,9.78]
[1642136224704,18.9262,147.98,147.89,9.78]
[1642136228710,18.9262,147.98,147.89,19.9201]
[1642136230724,18.6762,147.98,147.89,19.9201]
[1642136231536,15.9732,147.98,147.9,2.703]
[1642136231936,16.2232,147.98,147.9,2.703]
[1642136232336,16.2232,147.98,147.9,12.8423]
[1642136233137,16.2232,147.98,147.9,36.7535]
[1642136235938,16.2232,147.98,147.9,26.6142]
[1642136236541,16.2232,147.98,147.9,23.9112]
[1642136243152,16.2232,147.98,147.91,9.78]
[1642136243350,16.2232,147.98,147.91,12.483]
[1642136243750,16.2232,147.98,147.91,22.6211]
[1642136244049,15.9732,147.98,147.91,22.6211]
[1642136245552,15.9732,147.98,147.91,19.9181]
[1642136246055,15.9732,147.98,147.91,9.78]
[1642136246553,16.2232,147.98,147.91,9.78]
[1642136252560,18.9262,147.98,147.91,9.78]
[1642136257074,15.9732,147.98,147.91,22.6216]
[1642136258469,16.2232,147.98,147.91,22.6216]
[1642136261875,2.703,147.97,147.91,9.78]
[1642136262075,2.953,147.97,147.91,9.78]
[1642136262877,2.953,147.97,147.88,34.2064]
[1642136263077,26.4881,147.97,147.88,34.2064]
[1642136263981,32.4881,147.97,147.88,34.2064]
[1642136265114,32.4881,147.97,147.88,44.347]
[1642136266318,29.7851,147.97,147.88,44.347]
[1642136271725,32.4891,147.97,147.88,44.347]
[1642136273728,29.7851,147.97,147.88,44.347]
[1642136276364,32.4891,147.97,147.88,44.347]
[1642136279465,6.25,147.97,147.89,2.704]
[1642136279665,6.25,147.97,147.92,10.1376]
[1642136279865,0.25,147.97,147.93,23.4429756]
[1642136280066,10.2232,147.98,147.93,23.4429756]
[1642136283069,9.9732,147.98,147.93,49.5913756]
[1642136283267,9.9732,147.98,147.93,55.5913756]
[1642136283466,9.9732,147.98,147.93,49.5913756]
[1642136284069,9.9732,147.98,147.93,16.011]
[1642136284268,9.9732,147.98,147.93,9.78]
[1642136284467,10.2232,147.98,147.93,9.78]
[1642136286670,12.11348562,147.98,147.93,9.78]
[1642136288277,10.2232,147.98,147.93,9.78]
[1642136288478,12.9262,147.98,147.93,9.78]
[1642136291478,14.81648562,147.98,147.93,9.78]
[1642136292576,20.81648562,147.98,147.93,9.78]
[1642136292877,14.81648562,147.98,147.93,9.78]
[1642136294180,20.81648562,147.98,147.93,9.78]
[1642136294379,14.81648562,147.98,147.93,9.78]
[1642136295612,20.81648562,147.98,147.93,9.78]
[1642136296010,18.9262,147.98,147.91,10.1387]
[1642136297210,12.9262,147.98,147.91,10.1387]
[1642136299017,12.9262,147.98,147.9,32.3091]
[1642136299219,10.2232,147.98,147.9,32.3091]
[1642136300317,2.703,147.97,147.9,63.43989369]
[1642136300516,2.953,147.97,147.9,63.43989369]
[1642136300918,33.4843,147.97,147.9,63.43989369]
[1642136301118,27.4843,147.97,147.9,73.57909369]
[1642136301318,30.7813,147.97,147.9,73.57909369]
[1642136305825,33.4843,147.97,147.9,73.57909369]
[1642136306725,33.2343,147.97,147.9,73.57909369]
[1642136307933,30.7813,147.97,147.9,73.57909369]
[1642136308332,6.25,147.97,147.9,63.43989369]
[1642136308528,0.25,147.97,147.9,63.43989369]
[1642136308930,12.11348562,147.98,147.9,63.43989369]
[1642136309531,20.3637,147.98,147.9,63.43989369]
[1642136309730,23.0208,147.97,147.9,63.43989369]
[1642136309933,23.2708,147.97,147.9,63.43989369]
[1642136311932,29.2708,147.97,147.9,63.43989369]
[1642136312836,31.16108562,147.97,147.9,63.43989369]
[1642136313335,31.16108562,147.97,147.9,9.78]
[1642136313567,41.30218562,147.97,147.9,9.78]
[1642136314135,31.16108562,147.97,147.9,9.78]
[1642136314336,31.16108562,147.97,147.91,31.26740232]
[1642136315339,31.16108562,147.97,147.9,9.78]
[1642136315637,2.703,147.96,147.9,9.78]
[1642136315838,4.59328562,147.96,147.9,9.78]
[1642136316139,4.84328562,147.96,147.9,9.78]
[1642136316336,4.84328562,147.96,147.91,30.78873787]
[1642136317540,2.14028562,147.96,147.91,30.78873787]
[1642136318540,0.25,147.96,147.91,30.78873787]
[1642136318742,33.86408562,147.97,147.91,30.78873787]
[1642136320046,33.86408562,147.97,147.9,9.78]
[1642136320444,44.00508562,147.97,147.9,9.78]
[1642136320644,1.89028562,147.96,147.9,9.78]
[1642136321076,2.14028562,147.96,147.9,9.78]
[1642136324855,2.703,147.95,147.9,9.78]
[1642136325051,0.25,147.95,147.9,9.78]
[1642136326351,2.14028562,147.96,147.9,19.9193]
[1642136326551,8.14028562,147.96,147.9,9.78]
[1642136326750,2.14028562,147.96,147.9,9.78]
[1642136327950,8.14028562,147.96,147.9,9.78]
[1642136328149,2.14028562,147.96,147.9,9.78]
[1642136332058,2.703,147.95,147.9,9.78]
[1642136332557,2.953,147.95,147.9,9.78]
[1642136333257,13.0952,147.95,147.9,9.78]
[1642136333460,14.98548562,147.95,147.9,9.78]
[1642136333760,12.28248562,147.95,147.9,9.78]
[1642136334861,2.14028562,147.95,147.9,9.78]
[1642136335561,8.14028562,147.95,147.9,9.78]
[1642136335762,2.14028562,147.95,147.9,9.78]
[1642136336089,12.28248562,147.95,147.9,9.78]
[1642136336261,18.28248562,147.95,147.87,2.704]
[1642136336463,41.94328562,147.95,147.87,2.704]
[1642136336864,43.63188072,147.95,147.87,2.704]
[1642136337062,2.704,147.94,147.87,2.704]
[1642136337263,10.146,147.91,147.87,2.704]
[1642136337462,2.704,147.9,147.87,2.704]
[1642136337862,6.06439994,147.89,147.87,2.704]
[1642136338066,6.31439994,147.89,147.87,2.704]
[1642136339166,16.46069994,147.89,147.87,2.704]
[1642136342966,22.46069994,147.89,147.87,2.704]
[1642136345271,12.31439994,147.89,147.85,30.69235947]
[1642136346774,6.31439994,147.89,147.85,30.69235947]
[1642136351576,21.16614814,148.03,147.89,71.0]
[1642136351777,460.92526491,148.05,147.95,71.0]
[1642136351778,455.12956491,148.05,147.95,71.0]
[1642136351980,19.21713563,148.05,147.96,162.70784582]
[1642136352176,48.250537,148.09,147.97,2.702]
[1642136352374,14.380537,148.09,147.98,9.78]
[1642136352577,14.380537,148.09,148.0,10.1316]
[1642136352775,12.9505,148.16,148.01,12.481]
[1642136352976,21.06189,148.16,148.01,12.481]
[1642136353176,21.06189,148.16,148.01,9.78]
[1642136353576,69.18889,148.16,148.01,9.78]
[1642136353976,21.40613117,148.15,148.01,9.78]
[1642136354177,10.81239,148.14,148.01,9.78]
[1642136354579,14.76239,148.14,148.01,9.78]
[1642136354775,48.63239,148.14,148.01,9.78]
[1642136354977,48.88239,148.14,148.01,9.78]
[1642136355176,10.1369,148.08,148.01,9.78]
[1642136355377,2.701,148.07,148.01,9.78]
[1642136355577,0.25,148.07,148.01,9.78]
[1642136356381,2.701,148.06,148.01,9.78]
[1642136356583,2.951,148.06,148.01,9.78]
[1642136356783,2.951,148.06,147.96,2.701]
[1642136356982,2.951,148.06,147.95,9.78]
[1642136357388,14.01510359,148.05,147.95,9.78]
[1642136357583,2.702,148.04,147.95,9.78]
[1642136357984,2.952,148.04,147.95,9.78]
[1642136358617,13.0913,148.04,147.95,9.78]
[1642136358815,67.6,148.03,147.92,9.78]
[1642136359018,2.703,148.02,147.9,2.703]
[1642136359216,48.2109,148.01,147.89,2.703]
[1642136359415,2.703,148.0,147.89,2.703]
[1642136359615,12.845,148.0,147.89,2.703]
[1642136359917,19.095,148.0,147.89,2.703]
[1642136362020,67.6,147.99,147.89,2.703]
[1642136362220,12.8467,147.98,147.89,2.703]
[1642136362618,13.0967,147.98,147.89,2.703]
[1642136363629,13.0967,147.98,147.88,9.78]
[1642136363823,0.25,147.98,147.88,9.78]
[1642136364019,13.0954,148.0,147.88,9.78]
[1642136364219,2.953,148.0,147.88,9.78]
[1642136364819,70.553,148.0,147.88,9.78]
[1642136365218,10.1426,147.99,147.88,9.78]
[1642136365419,2.703,147.98,147.88,9.78]
[1642136365819,2.953,147.98,147.88,9.78]
[1642136366219,8.953,147.98,147.88,9.78]
[1642136366419,19.0964,147.98,147.88,9.78]
[1642136366620,19.0964,147.98,147.86,2.703]
[1642136366819,36.6864,147.98,147.84,2.704]
[1642136367021,9.7999851,147.97,147.81,9.78]
[1642136367222,12.484,147.96,147.81,9.78]
[1642136367422,10.1465,147.94,147.81,9.78]
[1642136367623,2.704,147.93,147.82,2.704]
[1642136368023,2.954,147.93,147.82,2.704]
[1642136368623,2.954,147.93,147.83,26.73912354]
[1642136369024,0.25,147.93,147.83,26.73912354]
[1642136369423,2.954,147.95,147.83,26.73912354]
[1642136369624,8.954,147.95,147.83,26.73912354]
[1642136369823,2.954,147.95,147.83,26.73912354]
[1642136370227,8.954,147.95,147.83,38.20771864]
[1642136370524,6.0,147.95,147.83,38.20771864]
[1642136370926,2.704,147.96,147.83,38.45771864]
[1642136371128,50.5584,147.99,147.83,38.45771864]
[1642136371324,6.0,147.96,147.84,3.87779207]
[1642136371526,6.0,147.96,147.85,10.1427]
[1642136371727,2.704,147.95,147.84,16.36179207]
[1642136371925,73.6,147.96,147.84,13.65779207]
[1642136372126,2.954,147.95,147.84,13.65779207]
[1642136372326,2.704,147.95,147.84,13.65779207]
[1642136372527,2.954,147.95,147.84,13.65779207]
[1642136372929,2.954,147.95,147.84,9.78]
[1642136373528,2.954,147.95,147.86,25.7292423]
[1642136373728,0.25,147.95,147.87,2.704]
[1642136373928,2.704,147.98,147.87,2.704]
[1642136374227,2.954,147.98,147.87,2.704]
[1642136375235,2.954,147.98,147.87,12.8454]
[1642136375530,2.954,147.98,147.87,2.704]
[1642136376230,8.954,147.98,147.87,2.704]
[1642136376430,2.954,147.98,147.87,2.704]
[1642136376633,8.954,147.98,147.87,2.704]
[1642136376833,19.0973,147.98,147.87,2.704]
[1642136377634,86.6973,147.98,147.87,2.704]
[1642136378436,96.4773,147.98,147.87,2.704]
[1642136378638,96.4773,147.98,147.86,2.704]
[1642136380141,86.334,147.98,147.86,2.704]
[1642136380844,86.334,147.98,147.86,12.8459]
[1642136381043,18.734,147.98,147.86,12.8459]
[1642136381247,2.954,147.98,147.87,9.78]
[1642136381443,0.25,147.98,147.88,27.07959529]
[1642136381842,36.8658,148.03,147.88,37.21979529]
[1642136382441,36.8658,148.03,147.88,46.99979529]
[1642136383143,3.87709163,148.02,147.88,46.99979529]
[1642136383345,2.703,148.01,147.88,47.24979529]
[1642136383944,2.703,148.01,147.88,46.99979529]
[1642136384643,8.703,148.01,147.88,46.99979529]
[1642136384870,2.703,148.01,147.88,44.29579529]
[1642136385072,0.25,148.01,147.88,44.29579529]
[1642136385271,2.703,148.0,147.88,44.29579529]
[1642136385471,32.6875,148.0,147.88,44.29579529]
[1642136385673,36.828,148.0,147.88,44.29579529]
[1642136385877,42.828,148.0,147.88,44.29579529]
[1642136386173,19.0935,148.0,147.88,44.29579529]
[1642136386571,8.953,148.0,147.88,44.29579529]
[1642136386972,8.953,148.0,147.89,12.8425]
[1642136387175,6.25,148.0,147.89,12.8425]
[1642136387373,2.703,147.99,147.89,12.8425]
[1642136387573,2.953,147.99,147.89,12.8425]
[1642136387973,0.25,147.99,147.89,12.8425]
[1642136388574,0.25,147.99,147.89,2.703]
[1642136388774,8.953,148.01,147.89,2.703]
[1642136388978,8.953,148.01,147.88,9.78]
[1642136389780,76.553,148.01,147.88,9.78]
[1642136390179,10.1413,147.99,147.88,9.78]
[1642136390480,2.703,147.98,147.88,9.78]
[1642136390980,2.953,147.98,147.88,9.78]
[1642136391377,80.6948,147.98,147.87,2.703]
[1642136391977,86.6948,147.98,147.87,2.703]
[1642136392376,96.4748,147.98,147.87,2.703]
[1642136392778,28.8748,147.98,147.87,2.703]
[1642136393178,28.8748,147.98,147.86,31.91953672]
[1642136393581,28.8748,147.98,147.86,42.06153672]
[1642136395177,18.733,147.98,147.86,42.06153672]
[1642136397780,28.8747,147.98,147.86,42.06153672]
[1642136398584,28.8747,147.98,147.86,12.846]
[1642136398982,28.8747,147.98,147.86,10.142]
[1642136399182,22.7489,147.97,147.86,10.142]
[1642136399386,2.704,147.96,147.86,10.142]
[1642136399582,2.954,147.96,147.86,10.142]
[1642136399782,8.954,147.96,147.86,10.142]
[1642136401387,8.954,147.96,147.86,32.74801961]
[1642136401587,8.704,147.96,147.86,42.52801961]
[1642136401787,25.4529,147.97,147.86,42.52801961]
[1642136401987,2.704,148.0,147.86,44.46661471]
[1642136402188,9.78,148.01,147.9,10.1394]
[1642136402386,6.0,148.0,147.91,32.45617035]
[1642136402587,8.703,148.0,147.91,32.45617035]
[1642136402788,2.703,148.0,147.91,32.45617035]
[1642136403188,2.703,148.0,147.91,29.75317035]
[1642136403390,2.703,148.03,147.92,2.703]
[1642136403619,23.7751,148.03,147.92,2.703]
[1642136404192,33.9135,148.03,147.92,2.703]
[1642136404392,34.1635,148.03,147.92,2.703]
[1642136405192,34.1635,148.03,147.92,12.8407]
[1642136406896,40.1635,148.03,147.92,12.8407]
[1642136407096,40.1635,148.03,147.92,2.703]
[1642136407097,41.8520951,148.03,147.92,2.703]
[1642136407697,51.6320951,148.03,147.92,2.703]
[1642136407896,2.703,148.02,147.92,2.703]
[1642136408098,10.1411,147.99,147.92,2.703]
[1642136408297,2.703,147.98,147.88,10.1403]
[1642136408498,2.953,147.98,147.88,10.1403]
[1642136409299,3.06866366,147.93,147.87,53.518448]
[1642136409501,3.31866366,147.93,147.88,9.78]
[1642136409702,3.06866366,147.92,147.88,9.78]
[1642136410206,3.31866366,147.92,147.88,9.78]
[1642136410704,3.31866366,147.92,147.88,19.9207]
[1642136411733,3.31866366,147.92,147.88,9.78]
[1642136412933,3.31866366,147.92,147.87,2.704]
[1642136413132,3.31866366,147.92,147.87,9.78]
[1642136414632,3.06866366,147.9,147.87,9.78]
[1642136415034,3.06866366,147.88,147.87,9.78]
[1642136415934,3.06866366,147.88,147.87,15.84439994]
[1642136417336,6.366e-05,147.88,147.87,15.84439994]
[1642136417541,3.06866366,147.9,147.88,30.93433199]
[1642136417737,3.06866366,147.9,147.88,33.63833199]
[1642136418436,3.06866366,147.9,147.88,2.704]
[1642136418837,3.06866366,147.9,147.89,6.06439994]
[1642136419639,2.704,147.97,147.89,6.06439994]
[1642136419840,3.06866366,147.94,147.89,6.06439994]
[1642136420040,3.31866366,147.94,147.89,6.06439994]
[1642136425046,0.25,147.94,147.89,6.06439994]
[1642136425244,3.06866366,147.92,147.89,6.06439994]
[1642136425545,3.31866366,147.92,147.89,6.06439994]
[1642136425743,3.31866366,147.92,147.9,26.28167266]
[1642136425946,3.06866366,147.92,147.9,26.28167266]
[1642136426145,3.06866366,147.92,147.91,36.06439994]
[1642136426545,3.06866366,147.92,147.91,6.06439994]
[1642136426949,3.31866366,147.92,147.91,6.06439994]
[1642136427146,3.31866366,147.92,147.91,3.03219997]
[1642136427546,3.31866366,147.92,147.89,9.78]
[1642136427746,3.31866366,147.92,147.87,2.704]
[1642136427945,3.31866366,147.92,147.85,9.78]
[1642136428148,3.31866366,147.92,147.85,30.35456022]
[1642136429949,2.704,147.91,147.83,10.1436]
[1642136430348,2.954,147.91,147.83,10.1436]
[1642136430551,3.06866366,147.88,147.83,10.1436]
[1642136430952,3.06866366,147.88,147.84,26.02772987]
[1642136431161,3.06866366,147.88,147.84,36.17102987]
[1642136432355,3.06866366,147.88,147.84,10.1433]
[1642136433456,3.31866366,147.88,147.84,10.1433]
[1642136433655,3.31866366,147.88,147.82,22.6286]
[1642136434056,3.06866366,147.88,147.82,22.8786]
[1642136434257,3.31866366,147.88,147.82,22.6286]
[1642136434656,3.31866366,147.88,147.83,3.87841889]
[1642136434860,3.31866366,147.88,147.83,14.02211889]
[1642136435560,0.25,147.88,147.83,14.02211889]
[1642136435758,2.955,147.92,147.83,14.02211889]
[1642136435958,3.06866366,147.86,147.83,14.02211889]
[1642136436159,3.06866366,147.86,147.84,3.03219997]
[1642136436962,3.06866366,147.86,147.84,34.37919044]
[1642136437383,3.06866366,147.86,147.84,44.52259044]
[1642136437584,0.00866366,147.86,147.85,66.78]
[1642136437889,0.25,147.92,147.85,66.78]
[1642136438086,26.6586,148.0,147.85,66.78]
[1642136438285,26.6586,148.0,147.89,26.32459307]
[1642136438484,32.6586,148.0,147.89,26.32459307]
[1642136439085,32.6586,148.0,147.9,12.483]
[1642136439284,32.6586,148.0,147.9,9.78]
[1642136439486,32.6586,148.0,147.9,19.9194]
[1642136440086,26.6586,148.0,147.9,19.9194]
[1642136440286,26.6586,148.0,147.91,2.703]
[1642136440490,26.6586,148.0,147.91,12.8412]
[1642136440888,26.9086,148.0,147.91,12.8412]
[1642136441690,26.9086,148.0,147.91,10.1382]
[1642136442092,32.9086,148.0,147.91,10.1382]
[1642136442590,32.6586,148.0,147.91,10.1382]
[1642136442788,32.6586,148.0,147.92,28.50596609]
[1642136442990,29.9546,148.0,147.93,2.703]
[1642136443589,23.9546,148.0,147.93,2.703]
[1642136443991,24.2046,148.0,147.93,2.703]
[1642136444992,29.9546,148.0,147.93,2.703]
[1642136445494,23.9546,148.0,147.93,2.703]
[1642136446099,23.9546,148.0,147.93,22.6201]
[1642136446301,24.2046,148.0,147.93,22.6201]
[1642136446903,0.25,148.0,147.93,22.6201]
[1642136447106,24.4342,148.01,147.93,22.6201]
[1642136448404,30.4342,148.01,147.93,22.6201]
[1642136449406,24.4342,148.01,147.93,22.6201]
[1642136449612,0.25,148.01,147.93,22.6201]
[1642136450008,23.8537,148.02,147.93,22.6201]
[1642136452412,0.25,148.02,147.93,22.6201]
[1642136452815,2.953,148.03,147.93,22.6201]
[1642136453018,0.25,148.03,147.93,22.6201]
[1642136453418,26.3147,148.04,147.93,22.6201]
[1642136454516,8.703,148.04,147.93,22.6201]
[1642136454720,8.703,148.04,147.93,24.8186951]
[1642136454919,6.0,148.04,147.93,98.4186951]
[1642136455318,3.87707891,148.06,147.93,98.4186951]
[1642136455517,3.87707891,148.06,147.94,24.6943]
[1642136455719,9.87707891,148.06,147.99,10.1326]
[1642136455917,2.702,148.07,148.0,30.44430405]
[1642136456341,2.952,148.07,148.0,30.44430405]
[1642136456744,8.952,148.07,148.0,30.44430405]
[1642136456946,2.952,148.07,148.0,30.44430405]
[1642136457347,8.952,148.07,148.0,40.57680405]
[1642136457546,2.952,148.07,148.0,40.57680405]
[1642136457945,2.702,148.08,148.01,2.702]
[1642136458149,3.87707891,148.09,148.02,9.78]
[1642136458347,7.891e-05,148.09,148.06,10.126]
[1642136458545,7.891e-05,148.09,148.07,8.76539993]
[1642136459147,7.891e-05,148.09,148.07,48.44111422]
[1642136459549,5.77965372,148.16,148.07,48.44111422]
[1642136459550,7.891e-05,148.13,148.08,10.1252]
[1642136459751,7.891e-05,148.13,148.1,28.6139894]
[1642136459953,7.891e-05,148.13,148.11,6.06439993]
[1642136460754,7.891e-05,148.13,148.11,16.18859993]
[1642136460952,5.77965372,148.16,148.11,16.18859993]
[1642136461157,2.7,148.19,148.11,16.18859993]
[1642136462453,2.95,148.19,148.11,16.18859993]
[1642136462652,2.7,148.19,148.11,16.18859993]
[1642136462854,2.7,148.19,148.11,26.21859993]
[1642136463652,23.9316,148.2,148.14,10.1225]
[1642136463853,6.0,148.19,148.14,10.1225]
[1642136464053,0.25,148.19,148.14,10.1225]
[1642136465457,31.8497,148.22,148.14,10.1225]
[1642136465955,25.8497,148.22,148.14,10.1225]
[1642136466154,35.9729,148.22,148.14,10.1225]
[1642136467757,3.87208788,148.21,148.14,10.1225]
[1642136467955,4.12208788,148.21,148.14,10.1225]
[1642136468355,4.12208788,148.21,148.13,40.24592271]
[1642136468554,10.374,148.21,148.13,40.24592271]
[1642136468762,10.374,148.21,148.13,9.78]
[1642136469556,16.374,148.21,148.13,9.78]
[1642136471560,6.57148831,148.2,148.13,9.78]
[1642136471760,10.1257,148.19,148.13,9.78]
[1642136471958,10.3757,148.19,148.13,9.78]
[1642136472560,1.93635282,148.16,148.13,9.78]
[1642136473060,8.18635282,148.16,148.14,6.06439993]
[1642136473261,2.18635282,148.16,148.14,3.03219996]
[1642136473460,2.699,148.15,148.09,9.78]
[1642136473662,8.18635282,148.16,148.09,9.78]
[1642136474463,1.93635282,148.14,148.07,10.1276]
[1642136474896,2.18635282,148.14,148.07,10.1276]
[1642136475063,2.18635282,148.14,148.06,12.479]
[1642136475262,2.18635282,148.14,148.06,32.77469088]
[1642136475661,1.93635282,148.13,148.06,42.90319088]
[1642136475861,1.93635282,148.13,148.07,2.7]
[1642136476062,2.18635282,148.13,148.07,2.7]
[1642136476463,1.93635282,148.12,148.07,2.7]
[1642136476665,1.93635282,148.12,148.07,12.8276]
[1642136477469,0.25,148.12,148.07,12.8276]
[1642136478068,0.25,148.12,148.07,2.7]
[1642136478266,0.25,148.12,148.06,9.78]
[1642136478267,2.7,148.11,148.06,9.78]
[1642136478467,2.95,148.11,148.06,9.78]
[1642136478868,0.25,148.11,148.07,28.96880534]
[1642136479669,10.3793,148.14,148.07,28.96880534]
[1642136479868,16.3793,148.14,148.07,28.96880534]
[1642136482275,16.3793,148.14,148.05,2.701]
[1642136482502,24.7358951,148.14,148.05,2.701]
[1642136482804,10.1334,148.07,148.01,2.7]
[1642136483003,10.3834,148.07,148.0,9.78]
[1642136483311,10.3834,148.07,148.0,40.47106348]
[1642136483904,0.25,148.07,148.0,50.60366348]
[1642136484304,25.9079,148.11,148.0,51.11366348]
[1642136484604,25.9079,148.11,148.01,2.701]
[1642136485004,36.0392,148.11,148.01,2.701]
[1642136485405,37.7277951,148.11,148.01,2.701]
[1642136485806,37.7277951,148.11,148.0,40.47106348]
[1642136486208,36.0392,148.11,148.0,50.60356348]
[1642136486705,1.93635282,148.08,148.0,50.60356348]
[1642136487107,2.18635282,148.08,148.0,50.60356348]
[1642136488608,12.31925282,148.08,148.0,50.60356348]
[1642136489510,1.93635282,148.07,148.0,50.60356348]
[1642136489909,2.18635282,148.07,148.0,50.60356348]
[1642136490312,8.18635282,148.07,148.0,50.60356348]
[1642136491414,18.31985282,148.07,148.0,40.47106348]
[1642136491612,18.31985282,148.07,148.0,9.78]
[1642136492716,18.31985282,148.07,148.0,38.71120976]
[1642136493315,18.31985282,148.07,148.0,9.78]
[1642136493517,18.31985282,148.07,147.98,4.56795933]
[1642136493718,2.702,148.06,147.98,4.56795933]
[1642136493917,10.137,148.02,147.98,4.56795933]
[1642136494117,2.702,148.01,147.98,4.56795933]
[1642136494516,2.952,148.01,147.98,4.56795933]
[1642136494715,0.25,148.01,147.98,4.56795933]
[1642136495116,2.702,148.0,147.98,2.701]
[1642136495516,2.952,148.0,147.98,2.701]
[1642136495717,0.25,148.0,147.98,2.701]
[1642136495917,6.25,148.0,147.98,2.701]
[1642136496119,0.25,148.0,147.98,2.701]
[1642136496320,2.952,148.0,147.98,2.701]
[1642136496818,0.25,148.0,147.98,2.701]
[1642136497018,2.702,148.01,147.98,2.701]
[1642136497019,2.952,148.01,147.98,2.701]
[1642136498227,10.1383,148.0,147.98,2.701]
[1642136498629,10.3883,148.0,147.98,2.701]
[1642136499428,2.7,147.98,147.92,1.86695933]
[1642136499629,10.1414,147.96,147.92,1.86695933]
[1642136499829,2.703,147.95,147.92,1.86695933]
[1642136500030,2.953,147.95,147.92,1.86695933]
[1642136500230,2.953,147.95,147.92,5.933e-05]
[1642136500429,36.7655,147.95,147.92,5.933e-05]
[1642136500831,10.1427,147.94,147.92,5.933e-05]
[1642136501031,2.703,147.93,147.92,5.933e-05]
[1642136501460,2.703,147.93,147.85,2.703]
[1642136501461,8.953,147.93,147.85,2.703]
[1642136501660,47.92,147.93,147.83,2.704]
[1642136501861,2.704,147.92,147.83,2.704]
[1642136502059,2.704,147.92,147.81,5.81623595]
[1642136502060,10.1451,147.9,147.81,5.81623595]
[1642136502260,2.705,147.89,147.81,5.81623595]
[1642136502462,0.25,147.89,147.81,8.52123595]
[1642136502660,2.705,147.88,147.81,2.705]
[1642136503063,10.1467,147.87,147.81,2.705]
[1642136503467,10.3967,147.87,147.81,2.705]
[1642136504063,2.705,147.86,147.78,2.705]
[1642136504267,10.1484,147.85,147.78,2.705]
[1642136504465,0.25,147.85,147.78,2.705]
[1642136505367,0.25,147.85,147.79,3.87987079]
[1642136505767,8.956,147.88,147.79,3.87987079]
[1642136506171,10.1483,147.85,147.79,3.87987079]
[1642136506565,10.3983,147.85,147.79,3.87987079]